Cogmind - Beta 13 @@@ ROGUE MODE // 2024.04.17 @ 18:28:53 Player: Lunace Result: Destroyed by P-70 Sage with Tesla Rifle Performance ------------- Evolutions (3) 1500 Regions Visited (8) 1600 Robots Destroyed (95) 475 Value Destroyed (2470) 2470 Prototype IDs (5) 100 Alien Tech Used (0) 0 Bonus (146) 146 TOTAL SCORE: 6291 Bonus ------- High Alert Combat Kills 163 Follower Combat Kills 73 Friendly Fire -90 Cogmind --------- Core Integrity 0/700 Matter 149/300 Energy 98/100 System Corruption 0% Temperature Cool (0) Movement Core (200) Ox3 Location -7/Factory Parts ------- > --- POWER (1) -------- (None) > --- PROPULSION (4) --- (None) > --- UTILITY (4) ------ Structural Scanner Improved Signal Interpreter > --- WEAPON (4) ------- Rocket Array Great Maul > --- INVENTORY (5) ---- Improved Melee Analysis Suite System Restoration Module Improved Field Recycling Unit (141) Peak State ------------ > --- POWER ------------ Improved Deuterium Engine > --- PROPULSION ------- Improved Aluminum Leg Improved Aluminum Leg Carbon-fiber Leg Carbon-fiber Leg > --- UTILITY ---------- Medium Storage Unit Experimental Sensor Array Improved Signal Interpreter Hardened Medium Armor Plating > --- WEAPON ----------- Rocket Launcher Great Maul Great Maul Great Maul > --- INVENTORY -------- Improved Deuterium Engine Improved Deuterium Engine Structural Scanner Improved Melee Analysis Suite Hardened Medium Armor Plating System Restoration Module Field Recycling Unit Rocket Launcher Great Maul Great Maul [Rating: 44] Favorites ----------- Power Light Ion Engine Engine Light Ion Engine Power Core Light Nuclear Core Propulsion Improved Aluminum Leg Treads Light Treads Leg Improved Aluminum Leg Flight Unit VTOL Module Utility Hardened Medium Armor Plating Device Tractor Beam Storage Medium Storage Unit Processor Improved Signal Interpreter Protection Hardened Medium Armor Plating Weapon Assault Rifle Energy Gun Medium Laser Ballistic Gun Assault Rifle Ballistic Cannon Gauss Cannon Launcher Mini Grenade Launcher Impact Weapon Great Maul Build | -11 -10 -10 -9 -9 -9 -8 -8 -7 ------- Run | Yrd Mat Min Mat Min Exi Min Mat Fac Slots Evolved 6 | . . . 2 . . . 2 2 Power . | . . . . . . . . . Propulsion 2 | . . . . . . . 2 . Utility 2 | . . . 2 . . . . . Weapon 2 | . . . . . . . . 2 Parts Attached 101 | 7 7 7 16 6 . 4 33 21 Power 18 | 1 2 3 1 1 . 1 5 4 Engine 13 | 1 1 3 1 1 . . 2 4 Core 5 | . 1 . . . . 1 3 . Reactor . | . . . . . . . . . Propulsion 23 | 2 2 1 7 . . . 8 3 Treads 1 | . . . . . . . . 1 Leg 21 | 2 2 1 7 . . . 8 1 Wheel . | . . . . . . . . . Hover . | . . . . . . . . . Flight 1 | . . . . . . . . 1 Utility 24 | 2 1 2 5 1 . 2 4 7 Device 10 | 1 . 2 . . . . 3 4 Storage 3 | 1 1 . 1 . . . . . Processor 3 | . . . . 1 . . 1 1 Hackware . | . . . . . . . . . Protection 8 | . . . 4 . . 2 . 2 Artifact . | . . . . . . . . . Weapon 36 | 2 2 1 3 4 . 1 16 7 Energy Gun 2 | 2 . . . . . . . . Energy Cannon . | . . . . . . . . . Ballistic Gun 14 | . 2 1 2 2 . 1 6 . Ballistic Cannon 2 | . . . . . . . 2 . Launcher 13 | . . . 1 2 . . 6 4 Special Weapon . | . . . . . . . . . Impact Weapon 5 | . . . . . . . 2 3 Slashing Weapon . | . . . . . . . . . Piercing Weapon . | . . . . . . . . . Special Melee Weapon . | . . . . . . . . . Unidentified Prototypes 3 | . . 1 . . . . 1 1 Parts Lost 28 | . . 3 2 1 . . 3 19 Power 6 | . . 1 . 1 . . 1 3 Propulsion 9 | . . 1 . . . . 2 6 Utility 4 | . . . 1 . . . . 3 Weapon 9 | . . 1 1 . . . . 7 Highest Loss Streak 18 | . . 2 1 1 . . 2 18 To Critical Strikes . | . . . . . . . . . Average Slot Usage (%) 96 | . 99 99 95 99 100 100 97 92 Engine 7 | . 5 10 11 11 11 3 . 5 Core 3 | . 8 3 . . . 7 8 . Leg 26 | . 28 27 22 22 22 22 34 26 Device 7 | . 14 14 8 . . . 8 7 Storage 10 | . 14 14 11 11 11 11 9 6 Processor 4 | . . . . 10 11 11 8 7 Protection 11 | . . . 19 22 22 22 10 6 Ballistic Gun 14 | . 25 28 19 12 11 20 12 . Launcher 3 | . . . 1 9 11 1 3 6 Impact Weapon 4 | . . . . . . . 1 21 Naked Turns . | . . . . . . . . . Heaviest Build 56 | 13 20 20 34 34 33 36 38 56 Greatest Support 56 | 20 20 20 26 26 26 26 56 56 Greatest Overweight (x) 14 | 1 . 1 1 1 1 1 1 14 Average Overweight (x) . | . . . . 1 1 1 . . Largest Inventory Capacity 10 | 8 10 10 10 10 10 10 10 10 Average Capacity 9 | 7 9 10 10 10 10 10 10 9 Most Carried 10 | 2 8 10 10 9 10 10 10 10 Average Carried 8 | 1 6 9 9 8 9 9 8 9 Final Capacity 10 | 8 10 10 10 10 10 10 10 5 Final Carried 10 | 2 8 7 9 9 10 9 10 3 Class Distribution -------------------- 90% | Mutant 6% | Scavenger-Mutant Dominant Class ---------------- Mutant | -10/Materials Mutant | -10/Mines Mutant | -9/Materials Mutant | -9/Mines Mutant | -9/Exiles Mutant | -8/Mines Mutant | -8/Materials Mutant | -7/Factory Resources | -11 -10 -10 -9 -9 -9 -8 -8 -7 ----------- Run | Yrd Mat Min Mat Min Exi Min Mat Fac Matter Collected 2501 | 270 258 317 479 145 26 90 603 313 Remotely 943 | 63 258 317 305 . . . . . Salvage Created 2344 | 107 277 88 606 91 . 97 642 436 Parts 174 | 4 22 . 43 18 . 3 64 20 Haulers Intercepted 2 | . . . . . . . 1 1 Recyclers Shooed 5 | . 1 . . . . . 1 3 Parts Field Recycled 22 | . . . . . . . . 22 Retrieved Matter 229 | . . . . . . . . 229 Parts Self-Destructed . | . . . . . . . . . Prevented . | . . . . . . . . . Kills | -11 -10 -10 -9 -9 -9 -8 -8 -7 ------- Run | Yrd Mat Min Mat Min Exi Min Mat Fac Combat Hostiles Destroyed 77 | . 8 8 15 10 . 3 24 9 Guns 36 | . 7 7 10 1 . 1 10 . AOE 38 | . 1 1 5 9 . 2 14 6 Classes Destroyed 13 | 2 4 1 1 1 . 1 1 2 Worker 10 | . . . . 1 . . 3 6 Builder 4 | . 1 . . . . . 2 1 Tunneler 1 | 1 . . . . . . . . Hauler 2 | . . . . . . . 1 1 Recycler 3 | 1 1 . . . . . . 1 Operator 1 | . . . . . . . . 1 Watcher 5 | . 2 . 2 . . . 1 . Swarmer 31 | . 6 . . 9 . . 12 4 Grunt 24 | . 2 . 10 1 . 2 9 . Brawler 1 | . . . . . . 1 . . Sentry 12 | . . . 5 . . . 3 4 Programmer 1 | . . . . . . . . 1 Assembled 8 | . . 8 . . . . . . Best Kill Streak 13 | 2 7 6 3 7 . 3 13 6 Combat Bots Only 10 | . 4 6 3 6 . 3 10 3 Max Kills in Single Turn 4 | 1 3 2 2 4 . 2 4 3 Gunslinging . | . . . . . . . . . Exploded 4 | . 1 1 2 3 . 2 4 3 Melee . | . . . . . . . . . Uniques/NPCs Destroyed . | . . . . . . . . . Combat | -11 -10 -10 -9 -9 -9 -8 -8 -7 -------- Run | Yrd Mat Min Mat Min Exi Min Mat Fac Hostile Shots Fired 619 | . 24 33 63 16 . 11 98 374 Missed 216 | . 3 10 26 4 . 1 38 134 Damage Taken 5100 | . 206 284 508 252 . 247 952 2651 Core 918 | . 26 65 67 14 . . 32 714 Absorbed by Shields . | . . . . . . . . . Regen/Repaired (Parts) 181 | . . . . . . . 181 . Core Remaining (%) 84 | 100 . 63 . . . 79 94 . Volleys Fired 219 | 4 21 19 54 17 . 6 83 15 Largest 2 | 2 2 2 2 2 . 2 2 1 Hottest 100 | 100 40 40 50 43 . 53 55 33 Shots Fired 344 | 8 42 38 102 21 . 12 106 15 Gun 297 | 8 42 38 97 17 . 10 85 . Cannon . | . . . . . . . . . Launcher 47 | . . . 5 4 . 2 21 15 Special . | . . . . . . . . . Kinetic 289 | . 42 38 97 17 . 10 85 . Thermal 8 | 8 . . . . . . . . Explosive 47 | . . . 5 4 . 2 21 15 Electromagnetic . | . . . . . . . . . Robot Hit Streak 29 | 3 5 5 29 14 . 5 9 3 Robot Miss Streak 3 | 2 3 2 2 3 . 1 3 2 Penetration Max . | . . . . . . . . . Secondary Targets 3 | . . 1 1 . . . 1 . Max Gunslinging Chain 1 | . . 1 1 . . . 1 . Shots Hit Robots 233 | 5 21 22 76 11 . 9 63 26 Core Hits 172 | 3 14 14 32 16 . 7 56 30 Critical Kills . | . . . . . . . . . Critical Parts Destroyed 8 | . . . 2 . . . . 6 Critical Strikes 9 | . . . 2 . . . . 7 Destroy 2 | . . . 2 . . . . . Smash 7 | . . . . . . . . 7 Melee Attacks 34 | . . . . . . . . 34 Impact 34 | . . . . . . . . 34 Slashing . | . . . . . . . . . Piercing . | . . . . . . . . . Sneak Attacks 3 | . . . . . . . . 3 Combat Hostiles . | . . . . . . . . . Follow-up Attacks 6 | . . . . . . . . 6 Damage Inflicted 7721 | 75 617 289 1226 707 . 366 2613 1828 Guns 2781 | 75 300 289 923 119 . 109 966 . Cannons . | . . . . . . . . . Explosions 4011 | . 317 . 303 588 . 257 1647 899 Melee 929 | . . . . . . . . 929 Ramming . | . . . . . . . . . Kinetic 2706 | . 300 289 923 119 . 109 966 . Thermal 392 | 75 317 . . . . . . . Explosive 3650 | . . . 303 588 . 257 1647 855 Electromagnetic 44 | . . . . . . . . 44 Impact 929 | . . . . . . . . 929 Slashing . | . . . . . . . . . Piercing . | . . . . . . . . . Highest Corruption 2 | . . . . . . . 1 2 Average Corruption 1 | . . . . . . . 1 1 Corruption Purged 2 | . . . . . . . . 2 Corruption Blocked . | . . . . . . . . . Effects 3 | . . . . . . . . 3 Message Errors 1 | . . . . . . . . 1 Matter Fused 1 | . . . . . . . . 1 Energy Discharges 1 | . . . . . . . . 1 Overload Shots . | . . . . . . . . . Overflow Damage 855 | . 152 . . 12 . 2 104 585 Projectiles . | . . . . . . . . . Explosions 307 | . 152 . . 12 . 2 104 37 Melee 548 | . . . . . . . . 548 Knockbacks 4 | . . . . . . . . 4 Impact 4 | . . . . . . . . 4 Kinetic . | . . . . . . . . . Secondary . | . . . . . . . . . Self-Inflicted Damage 418 | . . . 52 71 . 87 60 148 Shots 16 | . . . 2 2 . 2 5 5 Rammed . | . . . . . . . . . Targets Rammed . | . . . . . . . . . Kicked . | . . . . . . . . . Crushed . | . . . . . . . . . Highest Temperature 91 | 78 20 13 72 39 . 91 29 12 Average Temperature 21 | 30 7 9 28 14 . 53 9 8 Received Heat Transfer 1446 | . 60 180 210 99 . 81 369 447 Siege Activations . | . . . . . . . . . Robots Corrupted . | . . . . . . . . . Combat Hostiles . | . . . . . . . . . Parts Fried 3 | . . . . . . . . 3 Impact Corruptions 16 | . . . . . . . . 16 Robots Melted . | . . . . . . . . . Combat Hostiles . | . . . . . . . . . Parts Melted 1 | . . . . 1 . . . . Heat Transferred 422 | 222 200 . . . . . . . Parts Sabotaged . | . . . . . . . . . Parts Stolen . | . . . . . . . . . Parts Stripped . | . . . . . . . . . Power Chain Reactions . | . . . . . . . . . Alert | -11 -10 -10 -9 -9 -9 -8 -8 -7 ------- Run | Yrd Mat Min Mat Min Exi Min Mat Fac Peak Influence 916 | 10 428 93 374 404 . 87 916 597 Initial 354 | . 6 88 31 98 . . 33 354 Average 293 | 2 148 59 236 313 . 81 378 530 Maximum Alert Level 3 | . 2 . 1 2 . . 3 2 Low Security (%) 37 | 100 55 100 24 1 . 100 43 . Level 1 31 | . 42 . 75 72 . . 18 3 Level 2 26 | . 2 . . 26 . . 17 96 Level 3 4 | . . . . . . . 20 . Level 4 . | . . . . . . . . . Level 5 . | . . . . . . . . . High Security . | . . . . . . . . . Max Security . | . . . . . . . . . Squads Dispatched 13 | . . . 4 . . . 3 6 Investigation 7 | . . . 3 . . . 1 3 Extermination 1 | . . . . . . . . 1 Reinforcement 3 | . . . 1 . . . 1 1 Assault . | . . . . . . . . . Garrison 2 | . . . . . . . 1 1 Intercept . | . . . . . . . . . Searches Triggered . | . . . . . . . . . Construction Impeded 2 | . . . . . . . 1 1 Haulers Reinforced . | . . . . . . . . . Active Scanning Responses . | . . . . . . . . . Cargo Convoy Interrupts . | . . . . . . . . . Stealth | -11 -10 -10 -9 -9 -9 -8 -8 -7 --------- Run | Yrd Mat Min Mat Min Exi Min Mat Fac Distress Signals 12 | . 3 . 3 . . . 5 1 Communications Jammed . | . . . . . . . . . Distress Signals . | . . . . . . . . . Times Spotted 109 | . 12 13 22 7 . 3 33 19 Peak Tracking Total 6 | . 6 5 4 3 . 3 6 5 Tactical Retreats 5 | . 1 1 . . . . 3 . Traps | -11 -10 -10 -9 -9 -9 -8 -8 -7 ------- Run | Yrd Mat Min Mat Min Exi Min Mat Fac Traps Triggered 2 | . . . . . . . 1 1 Indirectly . | . . . . . . . . . Trap Hack Attempts . | . . . . . . . . . Triggered . | . . . . . . . . . Disarmed . | . . . . . . . . . Reprogrammed . | . . . . . . . . . Reused 1 | . . 1 . . . . . . Traps Extracted . | . . . . . . . . . Installed 4 | . . 4 . . . . . . Triggered . | . . . . . . . . . Most Traps Carried 2 | . . 2 . . . . . . Machines | -11 -10 -10 -9 -9 -9 -8 -8 -7 ---------- Run | Yrd Mat Min Mat Min Exi Min Mat Fac Machines Disabled 19 | . 7 . 1 3 . . 5 3 Max in Single Turn 7 | . 7 . 1 1 . . 1 3 Garrison Access 2 | . . . . . . . 1 1 Machines Repaired . | . . . . . . . . . Machines Dismantled . | . . . . . . . . . Machines Sabotaged 1 | . . . 1 . . . . . Overloaded Fab Kills . | . . . . . . . . . Hacking | -11 -10 -10 -9 -9 -9 -8 -8 -7 --------- Run | Yrd Mat Min Mat Min Exi Min Mat Fac Machines Accessed 21 | . 4 . 5 . 1 . 6 5 Terminals 11 | . 4 . 4 . . . 3 . Fabricators . | . . . . . . . . . Repair Stations 3 | . . . . . . . 2 1 Recycling Units 4 | . . . 1 . . . . 3 Scanalyzers . | . . . . . . . . . Garrison Access 2 | . . . . . . . 1 1 Total Hacks 46 | . 7 . 9 . 1 . 17 12 Successful 22 | . 3 . 6 . 1 . 8 4 Failed 24 | . 4 . 3 . . . 9 8 Catastrophic 10 | . 1 . 2 . . . 3 4 Database Lockouts . | . . . . . . . . . Manual 35 | . 7 . 9 . . . 9 10 Terminals 23 | . 7 . 6 . . . 10 . Fabricators . | . . . . . . . . . Repair Stations 7 | . . . . . . . 5 2 Recycling Units 9 | . . . 3 . . . . 6 Scanalyzers . | . . . . . . . . . Garrison Access 6 | . . . . . . . 2 4 Terminal Hacks 6 | . 2 . 1 . 1 . 2 . Record 1 | . . . . . 1 . . . Prototype ID Bank 1 | . 1 . . . . . . . Branch Access Points 2 | . . . 1 . . . 1 . Terminal Index 1 | . . . . . . . 1 . Locate Traps 1 | . 1 . . . . . . . Fabricator Hacks . | . . . . . . . . . Repair Station Hacks 4 | . . . . . . . 4 . Scan Component 2 | . . . . . . . 2 . Repair 2 | . . . . . . . 2 . Recycling Unit Hacks . | . . . . . . . . . Scanalyzer . | . . . . . . . . . Garrison Access Hacks . | . . . . . . . . . Unauthorized Hacks 12 | . 1 . 5 . . . 2 4 Terminals 4 | . 1 . 2 . . . 1 . Assimilate 1 | . 1 . . . . . . . Operators 1 | . . . . . . . 1 . Sabotage 1 | . . . 1 . . . . . Search 1 | . . . 1 . . . . . Fabricators . | . . . . . . . . . Repair Stations . | . . . . . . . . . Recycling Units 6 | . . . 3 . . . . 3 Monitor 2 | . . . 1 . . . . 1 Recyclers 2 | . . . 1 . . . . 1 Tunnel 2 | . . . 1 . . . . 1 Scanalyzers . | . . . . . . . . . Garrison Access 2 | . . . . . . . 1 1 Jam 2 | . . . . . . . 1 1 Data Cores Recovered . | . . . . . . . . . Used . | . . . . . . . . . Hacking Detections 13 | . 4 . 1 . . . 4 4 Full Trace Events 1 | . . . . . . . . 1 Feedback Events 1 | . . . . . . . . 1 Corruption 1 | . . . . . . . . 1 Feedback Blocked . | . . . . . . . . . Robot Schematics Acquired . | . . . . . . . . . Robots Built . | . . . . . . . . . Authchips . | . . . . . . . . . Time . | . . . . . . . . . Total Robot Build Rating . | . . . . . . . . . Part Schematics Acquired . | . . . . . . . . . Parts Built . | . . . . . . . . . Authchips . | . . . . . . . . . Time . | . . . . . . . . . Total Part Build Rating . | . . . . . . . . . Parts Repaired 2 | . . . . . . . 2 . Time 64 | . . . . . . . 64 . Parts Recycled . | . . . . . . . . . Recycled Matter . | . . . . . . . . . Retrieved Matter . | . . . . . . . . . Retrieved Components . | . . . . . . . . . Parts Scanalyzed . | . . . . . . . . . Part Schematics Acquired . | . . . . . . . . . Parts Damaged . | . . . . . . . . . Bothacking | -11 -10 -10 -9 -9 -9 -8 -8 -7 ------------ Run | Yrd Mat Min Mat Min Exi Min Mat Fac Used RIF Installer . | . . . . . . . . . Robots Hacked . | . . . . . . . . . Non-combat . | . . . . . . . . . Combat . | . . . . . . . . . Robot Hacks Applied . | . . . . . . . . . Relay Couplers Released . | . . . . . . . . . Fabnet Peak Effective % . | . . . . . . . . . Robots Rewired . | . . . . . . . . . Allies Hacked . | . . . . . . . . . Hacks Repelled . | . . . . . . . . . Allies | -11 -10 -10 -9 -9 -9 -8 -8 -7 -------- Run | Yrd Mat Min Mat Min Exi Min Mat Fac Total Allies 5 | . 1 3 . 1 . . . . Largest Group 3 | . 1 3 3 1 . . . . Highest-Rated Group 40 | . 10 40 40 31 . . . . Highest-Rated Ally 31 | . 10 16 16 31 . . . . Total Orders . | . . . . . . . . . Ally Attacks 44 | . . 18 25 1 . . . . Total Damage 428 | . . 149 279 . . . . . Kills 7 | . . 5 2 . . . . . Allies Corrupted . | . . . . . . . . . Allies Melted . | . . . . . . . . . Intel | -11 -10 -10 -9 -9 -9 -8 -8 -7 ------- Run | Yrd Mat Min Mat Min Exi Min Mat Fac Robot Analysis Total . | . . . . . . . . . Derelict Logs Recovered 3 | . . 2 . 1 . . . . Drone Launches . | . . . . . . . . . Drone Recoveries . | . . . . . . . . . Exploration | -11 -10 -10 -9 -9 -9 -8 -8 -7 ------------- Run | Yrd Mat Min Mat Min Exi Min Mat Fac Turns Passed 4535 | 88 425 585 911 404 275 97 833 917 Spaces Moved 2495 | 50 275 410 386 185 145 38 409 597 Core 42 | 2 . . . . . . . 40 Treads 3 | . . . . . . . . 3 Legs 2450 | 48 275 410 386 185 145 38 409 554 Wheels . | . . . . . . . . . Hover . | . . . . . . . . . Flight . | . . . . . . . . . Fastest Speed 50 | 50 120 120 120 190 190 190 120 50 Average Speed 141 | 118 120 120 183 190 190 190 122 122 Slowest Speed 750 | 120 120 190 190 190 190 190 190 750 Overloaded Moves . | . . . . . . . . . Propulsion Burnouts . | . . . . . . . . . Robots Hopped . | . . . . . . . . . Cave-ins Triggered . | . . . . . . . . . Exploration Rate (%) 43 | 4 60 81 48 69 49 18 44 18 Regions Visited 8 Branch Regions 4 Pre-discovered Areas 4 | . . . 1 1 1 . . 1 Known Exits Taken 5 | . . . 1 1 1 1 1 . Unknown Exits Taken 3 | 1 1 1 . . . . . . Scrap Searched 2 | . . 1 . 1 . . . . Spaces Dug 13 | . . . . 9 . . . 4 Terrain Destroyed 288 | . 17 . 27 34 . 22 130 58 Melee 4 | . . . . . . . . 4 Projectile . | . . . . . . . . . AOE 284 | . 17 . 27 34 . 22 130 54 Terrain Rammed . | . . . . . . . . . Walls Destroyed . | . . . . . . . . . Machines Disabled . | . . . . . . . . . Actions | -11 -10 -10 -9 -9 -9 -8 -8 -7 --------- Run | Yrd Mat Min Mat Min Exi Min Mat Fac Total 3133 | 67 328 463 493 215 145 51 645 726 Wait 182 | 5 15 16 14 5 . 1 85 41 Move 2487 | 49 274 409 385 184 144 37 408 597 Hop . | . . . . . . . . . Pick Up 46 | 2 5 4 9 2 1 . 11 12 Fast Attach 30 | 7 2 . 2 . . 1 13 5 Attach 23 | . . 3 2 2 . 1 3 12 Detach 7 | . . . 1 . . 1 3 2 Swap 48 | . 5 4 12 4 . 2 17 4 Drop 62 | . 6 4 14 1 . 2 22 13 Fire 219 | 4 21 19 54 17 . 6 83 15 Melee 25 | . . . . . . . . 25 Ram . | . . . . . . . . . Kick . | . . . . . . . . . Crush . | . . . . . . . . . Escape Stasis . | . . . . . . . . . Rewire . | . . . . . . . . . Trap 4 | . . 4 . . . . . . Miscellaneous . | . . . . . . . . . Route ------- -11/Scrapyard -10/Materials -10/Mines -9/Materials (discovered 3 exits: *Mat / *Min x2) -9/Mines (discovered 3 exits: *Mat x2 / *Exi) -9/Exiles -8/Mines -8/Materials (discovered 3 exits: *Fac / Sto x2) -7/Factory History --------- Turn | Location | Event 8 | -11/Scrapyard | Discovered new exit (range 15) 89 | -11/Scrapyard | Entered Materials 317 | -10/Materials | Build established: Mutant 379 | -10/Materials | Discovered new exit (range 15) 514 | -10/Materials | Entered Mines 541 | -10/Mines | Found a hidden stash of uninstalled traps 611 | -10/Mines | Found a damaged Exp. Sensor Array with a note attached 614 | -10/Mines | Found Prototype Device 615 | -10/Mines | Identified Exp. Sensor Array 629 | -10/Mines | Assembled infested the area 759 | -10/Mines | Assisted by bots powering up and referring to "LRC-V3" 943 | -10/Mines | Learned 2 Materials zone layouts 1068 | -10/Mines | Discovered new exit (range 8) 1099 | -10/Mines | Entered Materials 1099 | -9/Materials | Accompanied by 3 allies 1099 | -9/Materials | Evolved 2 slots: Utility x2 1100 | -9/Materials | Identified exit to Mines 1204 | -9/Materials | Lost 3 allies 1379 | -9/Materials | Discovered new exit (range 11) 2010 | -9/Materials | Entered Mines 2013 | -9/Mines | Escorted by a lone wolf Derelict 2014 | -9/Mines | Discovered new exit (range 7) 2034 | -9/Mines | Identified exit to Materials 2184 | -9/Mines | Learned location of Zion (-7) 2206 | -9/Mines | Received a Rocket Launcher from a helpful Derelict 2307 | -9/Mines | Discovered exit to Materials (range 14) 2406 | -9/Mines | Deemed a non-threat by the Exiles lab entrance 2406 | -9/Mines | Discovered new exit (range 5) 2412 | -9/Mines | Identified exit to Exiles 2414 | -9/Mines | Entered Exiles 2460 | -9/Exiles | Met 8R-AWN 2494 | -9/Exiles | Met EX-HEX 2566 | -9/Exiles | Met EX-DEC 2670 | -9/Exiles | Discovered new exit (range 11) 2687 | -9/Exiles | Identified exit to Mines 2689 | -9/Exiles | Entered Mines 2761 | -8/Mines | Discovered exit to Materials (range 14) 2786 | -8/Mines | Entered Materials 2786 | -8/Materials | Evolved 2 slots: Propulsion x2 2787 | -8/Materials | Identified exit to Storage 3001 | -8/Materials | Repaired Imp. Aluminum Leg 3206 | -8/Materials | Garrison activated, responded to threat 3245 | -8/Materials | Destroyed 10 combat bots 3365 | -8/Materials | Discovered new exit (range 9) 3412 | -8/Materials | Repaired Imp. Aluminum Leg 3434 | -8/Materials | Identified exit to Factory 3484 | -8/Materials | Destroyed 8 combat bots 3619 | -8/Materials | Entered Factory 3619 | -7/Factory | Evolved 2 slots: Weapon x2 4456 | -7/Factory | Garrison activated, responded to threat 4472 | -7/Factory | Core integrity fell below 50% 4501 | -7/Factory | Core integrity fell below 20% 4530 | -7/Factory | Found Prototype Launcher 4530 | -7/Factory | Identified Rocket Array 4536 | -7/Factory | Destroyed by P-70 Sage with Tesla Rifle Last Messages --------------- 04507_ K-01 Serf collects debris. 04507_ Microactuators destroyed. 04507_ U-05 Engineer lays Concrete. 04508_ Imp. Deuterium Engine destroyed. 04509_ U-05 Engineer builds a Wall. 04509_ U-05 Engineer lays Concrete. 04511_ S-27 Virus destroyed. 04511_ U-05 Engineer lays Concrete. 04512_ K-01 Serf cleans the Matter Pump. 04513_ U-05 Engineer lays Concrete. 04526_ Sneak attack on A-02 Transporter. 04526_ A-02 Transporter suffers critical hit (Smash). 04526_ Destroyed Weight Redist. System. 04526_ A-02 Transporter system corrupted by crushing effect. 04527_ A-02 Transporter system terminally corrupted. 04530_ Acquired Prototype Launcher. 04530_ Identified Rocket Array. Map ----- +----------------------------------------------------+ | ?????????????????????????????????????????????????? | | ?????????????????????????????????????????????????? | | ?????????????????????????????????????????????????? | | ?????????????????????????????????????????????????? | | ?????????????????????????????????????????????????? | | ?????????????????????????????????????????????????? | | ?????????????????????????????????????????????????? | | ?????????????????????????????????????????????????? | | ?????????????????????????????????????????????????? | | ?????????????????????????????????????????????????? | | ?????????????????????????????????????????????????? | | ?????????????????????????????????????????????????? | | ??????????????????????# ????????????????????? | | ??????????????????????###+###????????????????????? | | ?????????????????????? ????????????????????? | | ????????????????r?????? ?????????????????????? | | ??????????????????????? ?????????????????????? | | ????????? ???????????? ??????????????????????? | | ?????????+##???????????? ??????????????????????? | | ????????? #?? ##??????? ??????????????????????? | | ?????????? ##? ### ???? ]]] ?????????????????????? | | ?????????? ### ### ???##]##?????????????????????? | | ?????????? ### # # ??##%##?????????????????????? | | ??????????[# ???##]##?????????????????????? | | ??? ????## ##?????????????????????? | | ???####### ?????##@##?????????????????????? | | ???## #???## ##?????????????????????? | | ???## " ##???## ##?????????????????????? | | ??### r"" ####### #### ??????????????????? | | ??### T" #######/#### ??????????????????? | | ??## ""### p # ??????????????????? | | ??### !! " ### ##?######+??????????? | | ?#### ! ### # ?????????? | | ?#### % =% ### """ """ # ?????????? | | ?## ! = ### """ """ # ?????????? | | ?## %% ### """ """ # ??????????? | | ?## ### # ???????????? | | ?## % ### # ##????????????? | | ?### #+############+##### # ????????????? | | % % # ????????????? | | # ????????????? | | """ """ """ !!= # ????????????? | | """^""" """ !! # ????????????? | | """ """ """ !! # ????????????? | | ##### ######## ????????????? | | ######^ """ """ """ """ !####### ????????????? | | "" ##??## """ """ """ """ ##???????????????????? | | " ?????## """ """ """ """ ##???????????????????? | | ?????## ##???????????????????? | | ???????## ##???????????????????? | +----------------------------------------------------+ Best States ------------- Heat Dissipation 34 Energy Generation 16 Energy Capacity 290 Matter Stores 478 Matter Capacity 500 Sight Range 16 Robot Scan Range 20 Terrain Scan Density 10 Armor Coverage 450 Melee Speed Boost 20 Evasion (%) 55 Recoil Reduction 1 Item Schematics ----------------- None Robot Schematics ------------------ None Fabricated ------------ Nothing Alien Tech Used ----------------- None Achievements -------------- None Challenges ------------ None Game ------ Seed GravityPlatingRipper Manual? 0 Play Time 00:41:09 Cumulative 82.4 hours Start 2024.04.17 @ 17:48:01 End 2024.04.17 @ 18:28:53 Sessions 1 Manual Loads 0 Difficulty Rogue Special Mode None Game No. 97 Rogue 92 Adventurer 5 Explorer 0 Win Type - Total 3 Types 2/0/0/1/0/0/0/0/0 Lore% 40 Gallery% 57 Achievement% 44 Wizard Run 0 Options --------- Layout 1 ASCII 0 Keyboard 0 Movement Mouse Keybinds 0 Fullscreen 1 Font 24/Terminus Map View 50x35 Zoom Use 0% Tactical HUD 1 Map Filters NONE Filters NONE Steam 1 RUN: 4c51c164-2419-4803-9dad-b9cc0a151a4a